bitfinex/quotes_SOLUSD_20250522
["timestamp","ask_amount","ask_price","bid_price","bid_amount"]
[1747900167059,19.62103374,178.38,178.34,0.14216157]
[1747900170762,19.62103374,178.38,178.35,0.14216157]
[1747900171462,41.56118102,178.38,178.34,0.14216157]
[1747900171667,33.5663273,178.38,178.34,0.14216157]
[1747900172565,33.5663273,178.38,178.33,0.14216157]
[1747900174159,33.5663273,178.38,178.33,14.08745513]
[1747900175058,19.62103374,178.38,178.35,0.14216157]
[1747900176158,33.5663273,178.38,178.34,0.14216157]
[1747900176672,5.60600964,178.38,178.34,14.08745513]
[1747900176854,5.60600964,178.38,178.36,0.14216157]
[1747900177255,5.60569538,178.39,178.36,0.14216157]
[1747900179557,5.60569538,178.39,178.37,0.14216157]
[1747900180252,5.60569538,178.39,178.38,0.14216157]
[1747900181066,5.60569538,178.39,178.37,0.14216157]
[1747900181268,19.61443621,178.44,178.37,0.14216157]
[1747900181456,13.94529356,178.42,178.37,0.14216157]
[1747900182386,5.60506698,178.41,178.37,0.14216157]
[1747900182595,19.61773443,178.41,178.37,0.14216157]
[1747900183065,19.61773443,178.41,178.38,0.14216157]
[1747900185647,33.56302799,178.41,178.37,0.14216157]
[1747900187873,13.94529356,178.4,178.36,0.14216157]
[1747900188772,19.61773443,178.41,178.36,0.14216157]
[1747900188773,33.56302799,178.41,178.36,14.08745513]
[1747900188949,33.56302799,178.41,178.37,0.14216157]
[1747900189681,19.61773443,178.41,178.37,0.14216157]
[1747900189987,19.61773443,178.41,178.37,14.08745513]
[1747900190381,19.61773443,178.41,178.38,1.792]
[1747900190579,5.60286866,178.48,178.41,0.14216157]
[1747900190884,5.60286866,178.48,178.46,0.14216157]
[1747900191087,13.94529356,178.47,178.33,1.792]
[1747900191263,39.94529356,178.43,178.38,0.14216157]
[1747900191462,13.94529356,178.42,178.38,0.14216157]
[1747900191797,5.60412463,178.44,178.38,13.94529356]
[1747900191985,5.60412463,178.44,178.39,0.14216157]
[1747900192163,19.54941819,178.44,178.39,0.14216157]
[1747900193400,13.94529356,178.43,178.39,0.14216157]
[1747900194091,5.60475283,178.42,178.39,0.14216157]
[1747900195085,33.56192846,178.42,178.38,0.14216157]
[1747900195781,13.94529356,178.4,178.36,0.14216157]
[1747900196268,5.60569538,178.39,178.36,0.14216157]
[1747900196862,5.60569538,178.39,178.35,39.94529356]
[1747900196863,19.55098894,178.39,178.34,0.14216157]
[1747900197062,33.5652274,178.39,178.34,0.14216157]
[1747900199058,33.5652274,178.39,178.32,13.94529356]
[1747900199059,13.94529356,178.38,178.32,13.94529356]
[1747900199263,13.94529356,178.37,178.33,0.14216157]
[1747900199666,13.94529356,178.37,178.32,0.14216157]
[1747900200067,13.94529356,178.37,178.32,14.08745513]
[1747900200267,13.94529356,178.37,178.32,0.14216157]
[1747900200570,13.94529356,178.37,178.31,13.94529356]
[1747900200571,13.94529356,178.34,178.29,0.14216157]
[1747900200766,13.94529356,178.33,178.29,0.14216157]
[1747900201089,5.60695262,178.35,178.32,14.08745513]
[1747900201792,5.60695262,178.35,178.32,0.14216157]
[1747900202388,5.60695262,178.35,178.31,0.14216157]
[1747900203389,5.60695262,178.35,178.32,0.14216157]
[1747900203792,14.01146185,178.43,178.34,13.94529356]
[1747900203999,27.95675541,178.43,178.33,0.14216157]
[1747900204198,13.94529356,178.37,178.36,0.14216157]
[1747900204400,13.94529356,178.37,178.32,0.14216157]
[1747900204574,13.94529356,178.36,178.32,0.14216157]
[1747900205503,5.60695262,178.35,178.32,0.14216157]
[1747900207203,33.56962773,178.35,178.29,0.14216157]
[1747900207392,33.56962773,178.35,178.28,110.8406]
[1747900207702,19.62433417,178.35,178.31,0.14216157]
[1747900207873,33.56962773,178.35,178.31,0.14216157]
[1747900208690,13.94529356,178.34,178.3,0.14216157]
[1747900208893,13.94529356,178.31,178.3,0.14216157]
[1747900209095,19.62433417,178.35,178.3,0.14216157]
[1747900209096,13.94529356,178.34,178.3,0.14216157]
[1747900209291,5.60758145,178.33,178.3,0.14216157]
[1747900209689,19.62653507,178.33,178.28,14.08745513]
[1747900210001,33.57182863,178.33,178.28,14.08745513]
[1747900210792,19.62653507,178.33,178.28,14.08745513]
[1747900211179,33.57182863,178.33,178.28,14.08745513]
[1747900211897,5.60758145,178.33,178.28,14.08745513]
[1747900212086,5.60758145,178.33,178.3,0.14216157]
[1747900212284,5.60758145,178.33,178.3,14.08745513]
[1747900212507,5.60758145,178.33,178.3,0.14216157]
[1747900214195,5.60758145,178.33,178.3,14.08745513]
[1747900215898,13.94529356,178.35,178.3,14.08745513]
[1747900216688,33.56857316,178.36,178.3,14.08745513]
[1747900217410,33.56857316,178.36,178.32,0.14216157]
[1747900218310,19.6232796,178.36,178.32,0.14216157]
[1747900219288,33.56857316,178.36,178.32,0.14216157]
[1747900224315,33.56857316,178.36,178.28,0.14216157]
[1747900224502,33.56857316,178.36,178.32,0.14216157]
[1747900224915,19.6232796,178.36,178.32,0.14216157]
[1747900225221,33.56857316,178.36,178.32,0.14216157]
[1747900226694,13.94529356,178.35,178.3,0.14216157]
[1747900226895,13.94529356,178.34,178.3,0.14216157]
[1747900227407,13.94529356,178.35,178.3,0.14216157]
[1747900228018,13.94529356,178.35,178.27,26.0]
[1747900228019,13.94529356,178.34,178.27,26.0]
[1747900228200,5.60821042,178.31,178.28,0.14216157]
[1747900231800,19.55350398,178.31,178.28,0.14216157]
[1747900231999,19.62873647,178.31,178.27,0.14216157]
[1747900232626,19.62873647,178.31,178.27,14.08745513]
[1747900232810,5.60821042,178.31,178.3,13.94529356]
[1747900233729,14.0186959,178.34,178.31,0.14216157]
[1747900234026,5.60695262,178.35,178.31,14.08745513]
[1747900234203,5.60695262,178.35,178.33,0.14216157]
[1747900235224,5.60695262,178.35,178.33,14.08745513]
[1747900235406,5.60695262,178.35,178.34,0.14216157]
[1747900236029,5.60663825,178.36,178.34,0.14216157]
[1747900238302,19.62276817,178.37,178.34,0.14216157]
[1747900238796,5.60632393,178.37,178.34,13.94529356]
[1747900239014,5.60632393,178.37,178.29,26.0]
[1747900239015,5.60632393,178.37,178.36,14.08745513]
[1747900239617,5.60632393,178.37,178.36,0.14216157]
[1747900240306,19.62132322,178.38,178.35,0.14216157]
[1747900240634,33.56661678,178.38,178.35,0.14216157]
[1747900240815,13.94529356,178.37,178.31,84.8374]
[1747900241130,13.94529356,178.37,178.3,6.1221]
[1747900241131,13.94529356,178.37,178.33,0.14216157]
[1747900241307,13.94529356,178.36,178.31,0.14216157]
[1747900242451,5.60695262,178.35,178.32,0.14216157]
[1747900242926,33.56962773,178.35,178.29,14.08745513]
[1747900244124,33.56962773,178.35,178.31,0.14216157]
[1747900246137,13.94529356,178.34,178.31,0.14216157]
[1747900246317,13.94529356,178.33,178.28,13.94529356]
[1747900246517,13.94529356,178.33,178.29,0.14216157]
[1747900248538,5.60789591,178.32,178.29,0.14216157]
[1747900250449,13.94529356,178.31,178.27,0.14216157]
[1747900250612,13.94529356,178.29,178.27,0.14216157]
[1747900250939,13.94529356,178.3,178.27,0.14216157]
[1747900251235,13.94529356,178.31,178.26,14.08745513]
[1747900251725,13.94529356,178.3,178.26,0.14216157]
[1747900252526,5.60883953,178.29,178.26,0.14216157]
[1747900253371,5.60883953,178.29,178.27,0.14216157]
[1747900254469,5.60852495,178.3,178.27,0.14216157]
[1747900256792,33.5751309,178.3,178.26,0.14216157]
[1747900257564,13.94529356,178.29,178.24,14.08745513]
[1747900257867,5.60915413,178.28,178.24,14.08745513]
[1747900258251,19.63203947,178.28,178.24,14.08745513]
[1747900260882,13.94529356,178.25,178.2,0.14216157]
[1747900261073,13.94529356,178.22,178.2,0.14216157]
[1747900261268,5.61135738,178.21,178.2,0.14216157]
[1747900261466,19.55665094,178.21,178.19,7.71659382]
[1747900261669,13.94529356,178.2,178.19,7.85875539]
[1747900261980,13.94529356,178.2,178.19,0.14216157]
[1747900262178,13.94529356,178.2,178.16,0.14216157]
[1747900262484,13.94529356,178.2,178.15,0.14216157]
[1747900263169,13.94529356,178.2,178.16,0.14216157]
[1747900263358,5.6119872,178.19,178.16,0.14216157]
[1747900264058,5.6119872,178.19,178.16,14.08745513]
[1747900264270,5.6119872,178.19,178.17,0.14216157]
[1747900264671,5.6119872,178.19,178.16,0.14216157]
[1747900264870,5.6119872,178.19,178.16,14.08745513]
[1747900265879,19.63975084,178.21,178.18,0.14216157]
[1747900269285,5.61135738,178.21,178.18,0.14216157]
[1747900269791,5.61135738,178.21,178.19,0.14216157]
[1747900270289,5.61104253,178.22,178.19,0.14216157]
[1747900270483,5.61104253,178.22,178.16,26.14216157]
[1747900270484,19.55633609,178.22,178.16,26.14216157]
[1747900270684,19.55633609,178.22,178.18,0.14216157]
[1747900272573,13.94529356,178.23,178.18,0.14216157]
[1747900272986,19.63682574,178.24,178.2,14.08745513]
[1747900273488,13.94529356,178.23,178.2,0.14216157]
[1747900273688,13.94529356,178.21,178.17,0.14216157]
[1747900273895,13.94529356,178.2,178.17,0.14216157]
[1747900274689,13.94529356,178.21,178.16,0.14216157]
[1747900275174,13.94529356,178.21,178.17,0.14216157]
[1747900275582,13.94529356,178.2,178.17,0.14216157]
[1747900275781,13.94529356,178.19,178.15,0.14216157]
[1747900275994,13.94529356,178.2,178.15,0.14216157]
[1747900276167,13.94529356,178.2,178.15,14.08745513]
[1747900276367,13.94529356,178.21,178.17,0.14216157]
[1747900276782,5.61167227,178.2,178.17,0.14216157]
[1747900276982,5.61167227,178.2,178.18,0.14216157]
[1747900278497,33.58578074,178.21,178.17,0.14216157]
[1747900279483,33.58578074,178.21,178.16,0.14216157]
[1747900283403,13.94529356,178.2,178.16,0.14216157]
[1747900283808,13.94529356,178.2,178.15,0.14216157]
[1747900284105,13.94529356,178.2,178.15,14.08745513]
[1747900284603,19.64195521,178.19,178.15,14.08745513]
[1747900284901,13.94529356,178.17,178.1,1.8312]
[1747900285086,13.94529356,178.16,178.11,0.14216157]
[1747900285601,33.58724877,178.19,178.13,14.08745513]
[1747900285799,19.64195521,178.19,178.16,0.14216157]
[1747900286700,14.02996801,178.19,178.17,0.14216157]
[1747900289103,5.61135738,178.21,178.19,0.14216157]
[1747900289301,5.61135738,178.21,178.2,14.08745513]
[1747900290007,5.61041292,178.24,178.21,0.14216157]
[1747900290380,5.61041292,178.24,178.22,13.94529356]
[1747900290807,14.02550504,178.25,178.22,13.94529356]
[1747900291398,5.60946878,178.27,178.23,0.14216157]
[1747900291790,5.60946878,178.27,178.23,14.08745513]
[1747900292012,19.63314073,178.27,178.23,14.08745513]
[1747900292211,19.63314073,178.27,178.23,0.14216157]
[1747900294503,19.63314073,178.27,178.23,14.08745513]
[1747900295095,14.02367195,178.27,178.23,0.14216157]
[1747900295305,27.96896551,178.27,178.23,0.14216157]
[1747900296426,27.96896551,178.27,178.22,14.08745513]
[1747900296601,19.55444769,178.28,178.24,0.14216157]
[1747900297116,19.63203947,178.28,178.24,0.14216157]
[1747900297317,33.57733303,178.28,178.24,0.14216157]
[1747900297621,19.63203947,178.28,178.24,0.14216157]
[1747900298025,33.57733303,178.28,178.24,0.14216157]
[1747900301343,33.57733303,178.28,178.23,0.14216157]
[1747900302630,33.57733303,178.28,178.23,14.08745513]
[1747900302839,33.57733303,178.28,178.24,0.14216157]
[1747900304638,33.57733303,178.28,178.23,0.14216157]
[1747900305145,33.57733303,178.28,178.23,14.08745513]
[1747900305316,19.63203947,178.28,178.25,0.14216157]
[1747900306239,5.60915413,178.28,178.25,0.14216157]
[1747900306948,5.60883953,178.29,178.25,0.14216157]
[1747900308628,13.94529356,178.29,178.25,0.14216157]
[1747900308941,13.94529356,178.29,178.24,14.08745513]
[1747900309324,33.5751309,178.3,178.24,14.08745513]
[1747900311335,13.94529356,178.29,178.23,13.94529356]
[1747900311538,33.57733303,178.28,178.24,0.14216157]
[1747900312839,33.57733303,178.28,178.23,0.14216157]
[1747900313046,13.94529356,178.26,178.23,0.14216157]
[1747900313249,13.94529356,178.24,178.23,0.14216157]
[1747900313424,13.94529356,178.24,178.19,0.14216157]
[1747900313625,5.61072771,178.23,178.19,0.14216157]
[1747900313822,5.61072771,178.23,178.19,14.08745513]
[1747900314229,19.63754698,178.23,178.19,14.08745513]
[1747900314631,19.63754698,178.23,178.21,0.14216157]
[1747900315648,14.02681927,178.23,178.21,0.14216157]
[1747900319122,14.02681927,178.23,178.2,0.14216157]
[1747900320149,14.02681927,178.23,178.21,0.14216157]
[1747900320329,5.61041292,178.24,178.21,0.14216157]
[1747900321526,5.61041292,178.24,178.22,14.08745513]
[1747900321731,5.60946878,178.27,178.24,0.14216157]
[1747900322032,5.60821042,178.31,178.27,0.14216157]
[1747900322233,5.60821042,178.31,178.3,0.14216157]
[1747900322435,14.02006315,178.32,178.3,0.14216157]
[1747900323141,32.66971201,178.32,178.27,13.94529356]
[1747900323347,13.94529356,178.31,178.27,0.14216157]
[1747900324047,46.61500557,178.32,178.27,0.14216157]
[1747900324652,32.59494242,178.31,178.2,33.66]
[1747900324854,13.94529356,178.27,178.21,14.08745513]
[1747900325226,13.94529356,178.27,178.23,0.14216157]
[1747900325547,13.94529356,178.26,178.23,0.14216157]
[1747900325748,13.94529356,178.25,178.23,0.14216157]
[1747900325960,13.94529356,178.25,178.19,14.08745513]
[1747900326155,13.94529356,178.25,178.21,0.14216157]
[1747900326950,5.61041292,178.24,178.21,0.14216157]
[1747900327144,5.61041292,178.24,178.19,14.08745513]
[1747900327847,19.63644523,178.24,178.19,14.08745513]
[1747900328069,33.58173879,178.24,178.19,14.08745513]
[1747900328475,13.94529356,178.23,178.18,26.14216157]
[1747900328658,13.94529356,178.22,178.18,26.14216157]
[1747900329080,5.61135738,178.21,178.18,26.14216157]
[1747900329283,5.61135738,178.21,178.18,0.14216157]
[1747900334785,19.55665094,178.21,178.18,0.14216157]
[1747900334974,33.5850444,178.21,178.16,0.14216157]
[1747900340595,33.5850444,178.21,178.16,13.94529356]
[1747900341273,19.63975084,178.21,178.17,0.14216157]
[1747900342188,5.61009817,178.25,178.21,0.14216157]
[1747900342398,5.61009817,178.25,178.21,14.08745513]
[1747900344289,5.61009817,178.25,178.22,0.14216157]
[1747900346097,5.60915413,178.28,178.25,0.14216157]
[1747900346300,5.60915413,178.28,178.25,14.08745513]
[1747900346485,5.60915413,178.28,178.25,0.14216157]
[1747900349111,5.60915413,178.28,178.26,14.08745513]
[1747900349481,5.60883953,178.29,178.26,0.14216157]
[1747900349881,13.94529356,178.28,178.21,0.14216157]
[1747900350088,13.94529356,178.28,178.24,0.14216157]
[1747900350587,33.57623191,178.29,178.24,0.14216157]
[1747900351104,33.57623191,178.29,178.24,14.08745513]
[1747900353804,33.57623191,178.29,178.21,0.14216157]
[1747900353992,33.57623191,178.29,178.25,0.14216157]
[1747900356517,19.63093835,178.29,178.25,0.14216157]
[1747900357604,33.57623191,178.29,178.25,0.14216157]
[1747900358839,19.63093835,178.29,178.25,0.14216157]
[1747900359044,33.57623191,178.29,178.25,0.14216157]
[1747900359449,19.63093835,178.29,178.25,14.08745513]
[1747900359736,19.63093835,178.29,178.25,0.14216157]
[1747900359943,33.57623191,178.29,178.25,0.14216157]
[1747900360734,33.57623191,178.29,178.21,0.14216157]
[1747900360939,33.57623191,178.29,178.25,0.14216157]
[1747900363836,19.63093835,178.29,178.25,0.14216157]
[1747900364654,13.94529356,178.28,178.23,14.08745513]
[1747900365056,19.63093835,178.29,178.2,1.7707]
[1747900365057,13.94529356,178.26,178.2,13.94529356]
[1747900365259,13.94529356,178.26,178.21,0.14216157]
[1747900365638,5.61009817,178.25,178.21,0.14216157]
[1747900365840,19.55539173,178.25,178.2,0.14216157]
[1747900366043,13.94529356,178.24,178.2,0.14216157]
[1747900366339,13.94529356,178.22,178.17,0.14216157]
[1747900366535,13.94529356,178.21,178.17,0.14216157]
[1747900367133,13.94529356,178.22,178.17,0.14216157]
[1747900368159,19.63975084,178.21,178.17,0.14216157]
[1747900369152,5.61135738,178.21,178.19,0.14216157]
[1747900370237,5.61072771,178.23,178.19,0.14216157]
[1747900371155,5.61072771,178.23,178.2,0.14216157]
[1747900372264,19.63696262,178.24,178.2,0.14216157]
[1747900373363,33.58225618,178.24,178.2,0.14216157]
[1747900374762,19.63696262,178.24,178.2,0.14216157]
[1747900377765,5.61041292,178.24,178.21,0.14216157]
[1747900378664,18.64964886,178.19,178.1,8.02565004]
[1747900378863,13.94529356,178.17,178.11,13.94529356]
[1747900379558,5.61293219,178.16,178.11,13.94529356]
[1747900380444,19.64526267,178.16,178.11,13.94529356]
[1747900380646,19.64526267,178.16,178.12,0.14216157]
[1747900380865,5.61293219,178.16,178.15,0.14216157]
[1747900381760,19.6423968,178.19,178.15,0.14216157]
[1747900382968,33.58769036,178.19,178.15,0.14216157]
[1747900383169,14.0304096,178.19,178.15,0.14216157]
[1747900384247,27.97570316,178.19,178.15,0.14216157]
[1747900385269,19.6423968,178.19,178.15,0.14216157]
[1747900385477,19.6423968,178.19,178.15,13.94529356]
[1747900385667,5.6119872,178.19,178.16,14.08745513]
[1747900385866,5.6119872,178.19,178.16,0.14216157]
[1747900386067,5.6119872,178.19,178.17,13.94529356]
[1747900387363,19.64008313,178.21,178.17,13.94529356]
[1747900388493,19.64008313,178.21,178.18,0.14216157]
[1747900388870,19.64008313,178.21,178.18,14.08745513]
[1747900389385,14.02872575,178.21,178.18,0.14216157]
[1747900391595,33.58537669,178.21,178.17,0.14216157]
[1747900392090,33.58537669,178.21,178.16,13.94529356]
[1747900392091,19.64008313,178.21,178.15,0.14216157]
[1747900392395,19.64008313,178.21,178.14,26.0]
[1747900392396,33.58537669,178.21,178.17,0.14216157]
[1747900393189,19.64008313,178.21,178.17,0.14216157]
[1747900393382,19.64008313,178.21,178.17,14.08745513]
[1747900393581,19.64008313,178.21,178.17,0.14216157]
[1747900394296,33.58537669,178.21,178.17,0.14216157]
[1747900395095,14.02872575,178.21,178.17,0.14216157]
[1747900395773,14.02872575,178.21,178.17,14.08745513]
[1747900396376,14.02872575,178.21,178.14,26.0]
[1747900396377,13.94529356,178.2,178.16,0.14216157]
[1747900397377,5.6119872,178.19,178.16,0.14216157]
[1747900398595,19.64195521,178.19,178.15,0.14216157]
[1747900399001,19.64195521,178.19,178.15,14.08745513]
[1747900400777,14.02546572,178.25,178.19,0.14216157]
[1747900400986,14.02546572,178.25,178.22,0.14216157]
[1747900401285,14.02546572,178.25,178.21,0.14216157]
[1747900401478,27.97075928,178.25,178.21,0.14216157]
[1747900401876,13.94529356,178.24,178.19,0.14216157]
[1747900402773,19.63754698,178.23,178.19,0.14216157]
[1747900405486,38.28389097,178.26,178.19,0.14216157]
[1747900405688,13.94529356,178.24,178.19,0.14216157]
[1747900407710,19.63754698,178.23,178.19,0.14216157]
[1747900407911,19.63754698,178.23,178.2,0.14216157]
[1747900410411,33.58284054,178.23,178.19,0.14216157]
[1747900410710,13.94529356,178.2,178.19,0.14216157]
[1747900411210,33.58614652,178.2,178.15,0.14216157]
[1747900411589,13.94529356,178.19,178.15,0.14216157]
[1747900412395,13.94529356,178.18,178.14,0.14216157]
[1747900414007,5.61261716,178.17,178.14,0.14216157]
[1747900416509,14.03140766,178.18,178.14,0.14216157]
[1747900418707,14.03140766,178.18,178.15,0.14216157]
[1747900420424,19.64370982,178.18,178.16,0.14216157]
[1747900421025,19.64370982,178.18,178.15,0.14216157]
[1747900421026,33.58900338,178.18,178.15,0.14216157]
[1747900421795,33.58900338,178.18,178.14,0.14216157]
[1747900422400,19.64370982,178.18,178.14,14.08745513]
[1747900422602,19.64370982,178.18,178.15,0.14216157]
[1747900422901,33.58900338,178.18,178.15,0.14216157]
[1747900423821,33.58900338,178.18,178.13,13.94529356]
[1747900424026,33.58900338,178.18,178.14,0.14216157]
[1747900424826,33.58900338,178.18,178.13,13.94529356]
[1747900424827,33.58900338,178.18,178.13,0.14216157]
[1747900427737,13.94529356,178.15,178.08,109.0]
[1747900427913,13.94529356,178.12,178.07,0.14216157]
[1747900428415,19.6507776,178.11,178.07,0.14216157]
[1747900428808,33.59607116,178.11,178.06,0.14216157]
[1747900429209,33.59607116,178.11,178.06,14.08745513]
[1747900429410,33.59607116,178.11,178.06,0.14216157]
[1747900429618,13.94529356,178.09,178.06,0.14216157]
[1747900429819,13.94529356,178.07,178.04,0.14216157]
[1747900430021,13.94529356,178.05,178.03,8.60058149]
[1747900430207,18.64964886,178.08,178.02,18.1731237]
[1747900430412,5.61671534,178.04,178.03,0.14216157]
[1747900431026,19.5620089,178.04,178.02,18.03096213]
[1747900431330,19.5620089,178.04,178.02,10.0]
[1747900432427,14.04013749,178.07,178.02,10.0]
[1747900432609,13.94529356,178.05,178.02,10.0]
[1747900433233,13.94529356,178.04,178.02,10.0]
[1747900434546,5.61703083,178.03,178.02,10.14216157]
[1747900436133,5.61677176,178.04,178.02,10.14216157]
[1747900436729,5.61639988,178.05,178.02,10.14216157]
[1747900437444,5.61639988,178.05,178.02,24.08745513]
[1747900438639,5.61608446,178.06,178.02,10.14216157]
[1747900439417,5.61608446,178.06,178.03,0.14216157]
[1747900439617,5.61608446,178.06,178.03,14.08745513]
[1747900440127,5.61545372,178.08,178.05,14.08745513]
[1747900440730,19.56011669,178.1,178.05,14.08745513]
[1747900441136,33.59717452,178.1,178.05,14.08745513]
[1747900441347,13.94529356,178.07,178.04,0.14216157]
[1747900441517,13.94529356,178.06,178.04,0.14216157]
[1747900442549,5.61639988,178.05,178.04,0.14216157]
[1747900442939,5.61639988,178.05,178.03,0.14216157]
[1747900444767,5.61608446,178.06,178.03,0.14216157]
[1747900444950,13.94529356,178.04,178.02,10.0]
[1747900445256,67.28158918,178.06,178.03,0.14216157]
[1747900445621,33.60158918,178.06,178.03,0.14216157]
[1747900446026,13.94529356,178.05,178.03,0.14216157]
[1747900446626,13.94529356,178.07,178.03,0.14216157]
[1747900446829,19.56011669,178.1,178.06,0.14216157]
[1747900449046,5.61482313,178.1,178.06,0.14216157]
[1747900449247,19.56011669,178.1,178.06,0.14216157]
[1747900449447,5.61482313,178.1,178.06,0.14216157]
[1747900449653,19.56011669,178.1,178.06,0.14216157]
[1747900450162,5.61482313,178.1,178.06,0.14216157]
[1747900450677,19.56011669,178.1,178.06,0.14216157]
[1747900451449,19.56011669,178.1,178.05,0.14216157]
[1747900453257,13.94529356,178.09,178.05,0.14216157]
[1747900454242,13.94529356,178.08,178.05,0.14216157]
[1747900455170,125.58365737,178.14,178.02,10.0]
[1747900455171,33.60048532,178.07,178.03,0.14216157]
[1747900455369,13.94529356,178.05,178.03,0.14216157]
[1747900456567,5.61671534,178.04,178.03,0.14216157]
[1747900457080,19.5620089,178.04,178.03,0.14216157]
[1747900461165,5.61671534,178.04,178.03,0.14216157]
[1747900462896,19.5620089,178.04,178.02,10.0]
[1747900463073,13.94529356,178.03,178.02,10.0]
[1747900463281,19.5620089,178.04,178.02,10.0]
[1747900463480,5.61671534,178.04,178.02,10.0]
[1747900464194,5.61671534,178.04,178.03,0.14216157]
[1747900467199,5.61608446,178.06,178.03,0.14216157]
[1747900467904,19.56137802,178.06,178.03,0.14216157]
[1747900468205,5.61608446,178.06,178.03,0.14216157]
[1747900468377,13.94529356,178.05,178.03,0.14216157]
[1747900468572,13.94529356,178.05,178.02,10.0]
[1747900469378,5.61671534,178.04,178.02,10.0]
[1747900471899,19.5620089,178.04,178.02,10.0]
[1747900474307,19.65629562,178.06,178.02,10.0]
[1747900474480,13.94529356,178.04,178.02,10.0]
[1747900475615,32.59494242,178.03,178.02,10.0]
[1747900475778,13.94529356,178.03,178.02,10.0]
[1747900476311,18.64964886,178.05,178.02,10.0]
[1747900476481,13.94529356,178.03,178.02,10.0]
[1747900477331,19.6534842,178.09,178.03,0.14216157]
[1747900477546,13.04347423,178.13,178.09,0.14216157]
[1747900477547,4.0223569,178.13,178.09,0.14216157]
[1747900477821,4.0223569,178.13,178.11,39.94529356]
[1747900477983,5.61293219,178.16,178.13,0.14216157]
[1747900478551,19.55822575,178.16,178.11,0.14216157]
[1747900479057,13.94529356,178.14,178.11,0.14216157]
[1747900479254,19.55822575,178.16,178.11,13.94529356]
[1747900479409,5.61263687,178.17,178.14,14.08745513]
[1747900479924,5.61263687,178.17,178.14,0.14216157]
[1747900481323,5.61135738,178.21,178.16,0.14216157]
[1747900481526,13.94529356,178.19,178.16,0.14216157]
[1747900482361,13.94529356,178.18,178.14,0.14216157]
[1747900482580,5.61324726,178.15,178.14,0.14216157]
[1747900483137,5.61324726,178.15,178.12,0.14216157]
[1747900484560,5.61324726,178.15,178.11,0.14216157]
[1747900484767,5.61293219,178.16,178.11,14.08745513]
[1747900485263,19.55822575,178.16,178.11,14.08745513]
[1747900485673,33.59055623,178.16,178.11,0.14216157]
[1747900485951,13.94529356,178.15,178.11,0.14216157]
[1747900486354,5.61135738,178.21,178.14,13.94529356]
[1747900486660,19.55822575,178.16,178.13,0.14216157]
[1747900486847,5.61293219,178.16,178.13,0.14216157]
[1747900487046,5.61293219,178.16,178.12,0.14216157]
[1747900489369,19.55822575,178.16,178.12,0.14216157]
[1747900489570,5.61293219,178.16,178.09,1.7467]
[1747900489779,13.94529356,178.14,178.11,0.14216157]
[1747900489941,19.64526267,178.16,178.11,0.14216157]
[1747900490145,13.94529356,178.15,178.11,0.14216157]
[1747900491349,5.61356236,178.14,178.11,0.14216157]
[1747900492859,5.61356236,178.14,178.11,14.08745513]
[1747900493269,5.61356236,178.14,178.11,0.14216157]
[1747900495263,5.61356236,178.14,178.11,14.08745513]
[1747900495462,5.61293219,178.16,178.12,13.94529356]
[1747900496555,5.61293219,178.16,178.11,14.08745513]
[1747900497274,19.55822575,178.16,178.11,40.08745513]
[1747900498180,5.61167227,178.2,178.15,26.14216157]
[1747900498474,5.61167227,178.2,178.18,14.08745513]
[1747900498672,5.61167227,178.2,178.17,13.94529356]
[1747900498858,5.61167227,178.2,178.18,0.14216157]
[1747900499667,5.61135738,178.21,178.18,0.14216157]
[1747900500175,5.61135738,178.21,178.17,13.94529356]
[1747900500576,19.55665094,178.21,178.17,0.14216157]
[1747900500762,13.94529356,178.2,178.17,0.14216157]
[1747900501275,13.94529356,178.2,178.16,0.14216157]
[1747900501773,5.6119872,178.19,178.16,0.14216157]
[1747900502082,5.6119872,178.19,178.17,0.14216157]
[1747900503263,5.6119872,178.19,178.16,0.14216157]
[1747900503682,19.64085296,178.2,178.16,14.08745513]
[1747900506181,5.61167227,178.2,178.18,0.14216157]
[1747900507180,5.61167227,178.2,178.18,13.94529356]
[1747900507360,5.61167227,178.2,178.19,0.14216157]
[1747900508260,13.94529356,178.21,178.16,13.94529356]
[1747900508468,19.55633609,178.22,178.17,14.08745513]
[1747900510101,19.63093835,178.29,178.22,0.14216157]
[1747900510267,13.94529356,178.25,178.22,0.14216157]
[1747900511201,13.94529356,178.25,178.21,0.14216157]
[1747900511494,5.61041292,178.24,178.21,0.14216157]
[1747900513581,5.61041292,178.24,178.22,0.14216157]
[1747900514087,5.60915413,178.28,178.24,0.14216157]
[1747900514266,5.60915413,178.28,178.26,0.14216157]
[1747900515189,19.63151673,178.29,178.26,0.14216157]
[1747900515871,19.63151673,178.29,178.26,0.12216157]
[1747900517479,19.63151673,178.29,178.25,13.94529356]
[1747900517676,19.63151673,178.29,178.26,13.94529356]
[1747900517998,19.63151673,178.29,178.27,0.14216157]
[1747900518178,19.63151673,178.29,178.26,0.14216157]
[1747900519393,5.60883953,178.29,178.27,13.94529356]
[1747900519698,5.60883953,178.29,178.28,14.08745513]
[1747900519906,5.60883953,178.29,178.28,0.14216157]
[1747900521276,13.94529356,178.31,178.29,0.14216157]
[1747900521795,13.94529356,178.3,178.28,0.5]
[1747900521974,13.94529356,178.29,178.25,0.14216157]